bitfinex-derivatives/quotes_SOLF0:USTF0_20260315
["timestamp","ask_amount","ask_price","bid_price","bid_amount"]
[1773600533634,7.71577563,88.1,88.011,27.9622558]
[1773600534028,20.428,88.099,88.011,27.9622558]
[1773600535533,10.219,88.055,88.011,27.9622558]
[1773600536437,20.429,88.097,88.011,27.9622558]
[1773600537233,10.218,88.059,88.013,27.96520278]
[1773600537433,7.71577563,88.1,88.013,27.96520278]
[1773600537831,7.71577563,88.08,88.013,27.96520278]
[1773600538632,8.76160516,88.079,87.998,27.96498003]
[1773600538828,8.49628795,88.098,87.998,27.96498003]
[1773600539027,35.62,88.103,88.011,23.58417745]
[1773600539234,35.62,88.102,88.011,23.58417745]
[1773600539433,10.217,88.069,88.015,23.58417745]
[1773600540131,10.218,88.06,88.015,23.58417745]
[1773600541327,10.217,88.068,88.015,23.58417745]
[1773600541835,10.216,88.077,88.017,23.57742226]
[1773600543334,10.217,88.069,88.017,23.57742226]
[1773600546441,10.218,88.061,88.017,23.57742226]
[1773600550238,10.217,88.069,88.019,23.66492066]
[1773600550440,35.62,88.102,88.019,23.66492066]
[1773600550943,8.68297182,88.101,88.019,23.66492066]
[1773600551133,35.62,88.102,88.035,23.66505773]
[1773600551340,20.422,88.125,88.035,23.66505773]
[1773600552041,17.06466579,88.126,88.046,23.66426318]
[1773600552240,35.62,88.153,88.051,23.66426318]
[1773600552445,17.06652532,88.152,88.051,23.66426318]
[1773600552647,8.51826749,88.152,88.051,23.66426318]
[1773600552845,10.211,88.124,88.075,23.66186818]
[1773600553040,8.51826749,88.152,88.075,23.66186818]
[1773600553444,35.62,88.153,88.075,23.66186818]
[1773600554445,10.209,88.142,88.084,23.66204726]
[1773600555245,10.208,88.151,88.086,23.6385021]
[1773600555947,10.209,88.142,88.092,23.63506503]
[1773600556349,8.50840104,88.176,88.092,23.63506503]
[1773600556643,35.62,88.177,88.092,23.63506503]
[1773600557653,10.207,88.159,88.094,23.63653182]
[1773600557946,35.62,88.177,88.094,23.63653182]
[1773600558944,10.208,88.151,88.094,23.63653182]
[1773600560541,10.207,88.16,88.095,23.66293177]
[1773600561539,10.207,88.16,88.104,10.213]
[1773600561738,10.207,88.16,88.105,23.68034315]
[1773600564444,10.208,88.151,88.105,23.68034315]
[1773600565044,7.73207804,88.16,88.086,23.68383361]
[1773600566550,10.211,88.127,88.086,23.68383361]
[1773600569650,10.21,88.136,88.086,23.68383361]
[1773600569954,7.73207804,88.16,88.086,23.68383361]
[1773600572252,20.415,88.157,88.04,23.72913937]
[1773600572457,7.73207804,88.12,88.04,23.72913937]
[1773600572649,35.62,88.119,88.04,23.72913937]
[1773600573457,35.62,88.119,88.02,7.73207804]
[1773600573458,35.62,88.119,88.044,23.73069847]
[1773600574252,10.215,88.092,88.044,23.73069847]
[1773600574650,35.62,88.119,88.044,23.73069847]
[1773600574846,7.73207804,88.1,88.027,23.69946759]
[1773600577043,10.218,88.063,88.027,23.69946759]
[1773600577448,7.73207804,88.1,88.027,23.69946759]
[1773600578557,10.217,88.072,88.027,23.69946759]
[1773600578957,7.73207804,88.1,88.027,23.69946759]
[1773600580556,7.73207804,88.08,88.012,23.77434083]
[1773600580754,35.64,88.079,88.012,23.77434083]
[1773600581659,10.219,88.057,88.012,23.77434083]
[1773600583656,10.219,88.052,88.012,23.77434083]
[1773600584651,20.429,88.097,88.012,23.77434083]
[1773600584961,35.64,88.096,88.012,23.77434083]
[1773600585553,10.217,88.07,88.012,23.77434083]
[1773600585858,10.31793335,88.133,88.012,23.77434083]
[1773600585859,35.64,88.103,88.013,23.7872157]
[1773600586060,7.73207804,88.12,88.013,23.7872157]
[1773600586061,35.64,88.104,88.013,23.7872157]
[1773600586256,10.215,88.088,88.03,23.7872157]
[1773600586456,7.73207804,88.12,88.03,23.7872157]
[1773600587554,10.214,88.096,88.042,23.78225943]
[1773600589959,10.213,88.104,88.042,23.78225943]
[1773600590159,35.64,88.13,88.047,23.77243012]
[1773600590956,7.73207804,88.12,88.047,23.77243012]
[1773600591156,20.421,88.128,88.047,23.77243012]
[1773600591562,35.64,88.13,88.049,23.77101198]
[1773600592368,10.214,88.1,88.051,23.77103033]
[1773600594361,10.214,88.1,88.007,23.77113235]
[1773600594362,7.73207804,88.1,88.007,23.77113235]
[1773600594561,7.73207804,88.09,88.007,23.77113235]
[1773600594761,7.73207804,88.09,88.009,23.77130215]
[1773600595568,35.64,88.092,88.012,23.77130215]
[1773600597467,10.217,88.073,88.021,23.75868993]
[1773600597766,7.73207804,88.11,88.021,23.75868993]
[1773600598167,10.216,88.083,88.028,10.222]
[1773600598369,10.216,88.083,88.029,23.75883993]
[1773600599275,10.216,88.083,87.972,20.98891373]
[1773600599276,7.73207804,88.1,88.01,23.74139475]
[1773600601074,7.73207804,88.1,88.011,23.73834584]
[1773600601273,35.64,88.119,88.011,23.73834584]
[1773600601474,10.215,88.092,88.011,23.73834584]
[1773600602574,10.215,88.092,88.034,23.67784464]
[1773600603575,10.215,88.092,88.038,23.6858896]
[1773600605971,35.64,88.119,88.043,23.70424628]
[1773600606173,10.214,88.1,88.043,23.70424628]
[1773600607572,10.214,88.1,88.049,23.74631684]
[1773600608078,7.73207804,88.14,88.049,23.74631684]
[1773600608278,7.73207804,88.14,88.052,18.63931684]
[1773600609573,7.73207804,88.14,88.056,18.63927462]
[1773600610379,20.418,88.143,87.991,178.0]
[1773600610380,7.73207804,88.12,88.033,18.61964558]
[1773600610582,8.44064925,88.119,88.033,18.61964558]
[1773600611082,7.73207804,88.12,88.033,18.61964558]
[1773600611278,8.44064925,88.119,88.033,18.61964558]
[1773600611483,8.44064925,88.118,88.033,18.61964558]
[1773600611677,10.216,88.082,88.033,18.61964558]
[1773600614788,20.428,88.098,88.013,18.57247729]
[1773600616287,8.44064925,88.097,88.013,18.57247729]
[1773600616589,10.218,88.066,88.015,18.58125262]
[1773600617586,10.218,88.066,88.018,18.58824434]
[1773600618889,10.218,88.066,88.031,18.58820236]
[1773600622287,3.09365613,88.06,88.011,18.60626123]
[1773600622694,3.09365613,88.03,87.973,18.60608147]
[1773600622893,35.66,88.049,87.974,18.60608147]
[1773600623089,3.09365613,88.03,87.974,18.60608147]
[1773600623993,13.8993701,88.104,87.955,35.66]
[1773600623994,3.09365613,88.05,87.991,18.60581013]
[1773600625695,3.09365613,88.06,88.001,18.66736399]
[1773600627292,10.221,88.041,88.001,18.66736399]
[1773600629098,3.09365613,88.06,88.011,18.64878566]
[1773600629294,3.09365613,88.07,88.011,18.64878566]
[1773600629599,3.09365613,88.07,88.02,3.09365613]
[1773600630193,3.09365613,88.07,88.011,18.64878566]
[1773600630594,10.219,88.058,88.011,18.64878566]
[1773600631492,10.219,88.058,88.02,3.09365613]
[1773600631796,3.09365613,88.07,88.021,18.64531135]
[1773600631996,35.66,88.073,88.021,18.64531135]
[1773600633300,3.09365613,88.07,88.021,18.64531135]
[1773600633601,10.218,88.064,88.021,18.64531135]
[1773600633891,35.66,88.073,88.021,18.64531135]
[1773600634495,3.09365613,88.07,88.021,18.64531135]
[1773600635297,10.217,88.069,88.021,18.64531135]
[1773600636200,10.217,88.069,88.031,18.52966498]
[1773600636604,35.66,88.073,88.031,18.52966498]
[1773600637100,3.09365613,88.09,88.031,18.52966498]
[1773600637600,10.217,88.072,88.031,18.52966498]
[1773600640906,20.422,88.127,88.04,3.09365613]
[1773600641108,20.422,88.127,88.004,20.98891373]
[1773600641109,3.09365613,88.09,88.038,18.54410948]
[1773600641603,10.216,88.078,88.038,18.54410948]
[1773600643009,10.217,88.071,88.038,18.54410948]
[1773600643609,10.216,88.079,88.038,18.54410948]
[1773600644613,10.215,88.086,88.041,18.62334426]
[1773600645612,10.214,88.094,88.051,18.62517006]
[1773600648919,10.213,88.102,88.051,18.62517006]
[1773600649310,3.09365613,88.11,88.051,18.62517006]
[1773600650414,10.214,88.095,88.051,18.62517006]
[1773600652419,8.61802293,88.119,88.051,18.62517006]
[1773600652718,3.09365613,88.08,88.038,18.6468137]
[1773600653413,3.09365613,88.09,88.038,18.6468137]
[1773600655520,10.216,88.08,88.038,18.6468137]
[1773600656715,10.216,88.08,88.04,3.09365613]
[1773600656920,10.216,88.08,88.041,18.67055409]
[1773600657719,10.215,88.089,88.05,3.09365613]
[1773600657917,10.215,88.089,88.051,18.67053412]
[1773600658724,10.216,88.081,88.051,18.67053412]
[1773600661424,10.217,88.075,88.051,18.67053412]
[1773600661720,10.217,88.075,88.031,18.69074181]
[1773600663923,10.217,88.075,88.033,18.69116474]
[1773600664123,10.217,88.075,88.041,18.69116474]
[1773600667926,10.215,88.089,88.044,18.67495251]
[1773600673522,8.61802293,88.096,88.046,10.22]
[1773600673727,8.61802293,88.112,88.061,18.6998308]
[1773600673927,8.61802293,88.112,88.012,28.05431411]
[1773600673928,8.61802293,88.129,88.081,18.6998308]
[1773600674126,8.61802293,88.128,88.081,18.6998308]
[1773600674316,3.0924535,88.13,88.081,18.6998308]
[1773600674317,8.61802293,88.127,88.081,18.6998308]
[1773600674521,3.0924535,88.12,88.081,18.6998308]
[1773600674826,3.0924535,88.11,88.053,18.69794313]
[1773600675317,10.214,88.098,88.053,18.69794313]
[1773600676623,10.215,88.091,88.053,18.69794313]
[1773600682125,8.72978892,88.098,88.053,18.69794313]
[1773600682332,10.214,88.1,88.053,18.69794313]
[1773600684029,10.214,88.1,88.015,28.05431411]
[1773600684030,3.0924535,88.09,88.04,18.69686723]
[1773600684230,8.73198879,88.089,88.04,18.69686723]
[1773600684429,8.73198879,88.088,88.04,18.69686723]
[1773600684730,3.0924535,88.09,88.04,18.69686723]
[1773600684930,8.7327046,88.089,88.04,18.69686723]
[1773600685129,8.7327046,88.088,88.032,35.66]
[1773600685330,10.215,88.085,88.033,18.69686735]
[1773600685831,3.0924535,88.08,88.033,18.69686735]
[1773600686727,10.216,88.079,88.033,18.69686735]
[1773600689029,3.0924535,88.07,88.024,10.222]
[1773600689733,10.217,88.069,88.021,18.69017543]
[1773600690036,3.0924535,88.06,88.007,18.69136474]
[1773600690232,3.0924535,88.05,88.007,18.69136474]
[1773600691132,3.0924535,88.06,88.007,18.69136474]
[1773600691336,3.0924535,88.06,88.011,18.68906639]
[1773600691537,10.22,88.047,88.011,18.68906639]
[1773600693342,10.219,88.055,88.011,18.68906639]
[1773600694536,10.219,88.055,87.987,21.2177593]
[1773600694537,3.0924535,88.02,87.97,18.71238706]
[1773600694741,3.0924535,88.01,87.97,18.71238706]
[1773600694938,10.225,88.001,87.97,18.71238706]
[1773600695843,10.225,88.001,87.956,34.94254907]
[1773600697250,10.226,87.992,87.961,34.85687836]
[1773600699252,10.226,87.992,87.95,3.0924535]
[1773600700457,10.226,87.992,87.95,37.98051557]
[1773600700956,3.0924535,88.0,87.95,37.98051557]
[1773600701555,10.225,88.001,87.95,37.98051557]
[1773600703252,3.0924535,88.01,87.95,37.98051557]
[1773600704754,3.0924535,88.01,87.95,34.88806207]
[1773600704952,3.0924535,88.01,87.95,37.98051557]
[1773600705153,10.225,88.006,87.95,37.98051557]
[1773600705756,10.225,88.006,87.952,34.9130273]
[1773600706355,3.0924535,88.01,87.954,34.9130273]
[1773600706559,3.0924535,88.01,87.96,3.0924535]
[1773600706859,3.0924535,88.01,87.951,34.90996371]
[1773600707561,10.224,88.008,87.951,34.90996371]
[1773600707855,3.0924535,88.0,87.94,3.0924535]
[1773600708054,3.0924535,88.0,87.941,34.91206126]
[1773600708258,3.0924535,87.98,87.878,1.9783462]
[1773600708457,3.0924535,87.96,87.911,34.91206126]
[1773600708854,35.68,87.982,87.911,34.91206126]
[1773600708855,3.0924535,87.97,87.911,34.91206126]
[1773600709365,3.0924535,87.95,87.896,10.237]
[1773600709654,3.0924535,87.97,87.911,34.91917417]
[1773600710059,3.0924535,87.98,87.921,34.86481587]
[1773600710261,3.0924535,87.98,87.93,3.0924535]
[1773600710561,3.0924535,87.98,87.921,34.86481587]
[1773600711362,3.0924535,87.97,87.921,34.86481587]
[1773600711663,3.0924535,87.96,87.921,34.86481587]
[1773600711863,3.0924535,87.97,87.921,34.86481587]
[1773600712363,3.0924535,87.98,87.921,34.86481587]
[1773600712966,10.228,87.98,87.931,34.87087486]
[1773600713361,13.3204535,87.98,87.931,34.87087486]
[1773600713858,10.228,87.98,87.931,34.87087486]
[1773600715771,11.37,88.062,87.931,34.87087486]
[1773600715966,3.0924535,88.02,87.962,34.87219553]
[1773600717457,3.0924535,88.02,87.97,3.0924535]
[1773600717658,3.0924535,88.02,87.962,34.87219553]
[1773600718662,10.224,88.015,87.962,34.87219553]
[1773600719165,10.224,88.015,87.97,3.0924535]
[1773600719365,10.224,88.015,87.971,34.85123498]
[1773600719868,10.224,88.015,87.97,3.0924535]
[1773600720069,10.224,88.015,87.96,3.0924535]
[1773600720370,10.224,88.015,87.961,34.81802631]
[1773600721770,10.222,88.025,87.971,34.81955716]
[1773600721968,10.222,88.025,87.981,34.81955716]
[1773600722170,35.7,88.037,87.991,34.81955716]
[1773600722766,10.222,88.027,87.991,34.81955716]
[1773600723667,3.0924535,88.03,87.972,34.82405511]
[1773600723868,3.0924535,88.02,87.972,34.82405511]
[1773600724069,10.224,88.012,87.972,34.82405511]
[1773600725967,10.223,88.02,87.981,34.84956314]
[1773600729674,10.222,88.028,87.981,34.84956314]
[1773600730375,10.222,88.028,87.991,34.8501011]
[1773600731582,10.223,88.021,87.991,34.8501011]
[1773600731774,10.223,88.021,87.971,34.83681933]
[1773600733176,10.223,88.021,87.981,34.83590449]
[1773600733377,10.222,88.029,87.991,34.83590449]
[1773600735173,45.921,88.037,88.001,34.83890431]
[1773600736171,10.221,88.037,88.001,34.83890431]
[1773600736477,10.22,88.045,88.001,34.83890431]
[1773600739080,10.22,88.045,88.011,34.8608395]
[1773600739282,10.218,88.063,88.021,34.8608395]
[1773600739979,10.217,88.072,88.021,34.8608395]
[1773600740278,3.09764759,88.07,88.021,34.8608395]
[1773600741180,3.09764759,88.07,87.973,35.68]
[1773600741380,3.09764759,88.0,87.959,34.8651358]
[1773600742585,3.09764759,88.01,87.959,34.8651358]
[1773600742786,10.226,87.998,87.959,34.8651358]
[1773600744990,10.227,87.99,87.959,34.8651358]
[1773600746791,35.68,88.025,87.921,34.81706853]
[1773600746792,3.09764759,87.98,87.921,34.81706853]
[1773600747293,3.09764759,87.97,87.921,34.81706853]
[1773600748589,10.23,87.962,87.921,34.81706853]
[1773600751386,10.228,87.973,87.921,34.81706853]
[1773600751586,8.44737504,88.015,87.921,34.81706853]
[1773600751892,35.7,88.016,87.921,34.81706853]
[1773600752499,35.7,88.016,87.923,34.84753531]
[1773600752996,10.227,87.983,87.923,34.84753531]
[1773600756593,10.226,87.992,87.931,34.83269997]
[1773600756799,35.7,88.015,87.931,34.83269997]
[1773600757491,10.225,88.005,87.944,34.83269997]
[1773600758593,10.225,88.005,87.947,34.83980987]
[1773600759900,10.226,87.996,87.947,34.83980987]
[1773600760200,35.7,88.015,87.947,34.83980987]
[1773600761401,10.226,87.991,87.947,34.83980987]
[1773600761701,35.7,88.015,87.947,34.83980987]
[1773600762198,10.226,87.994,87.947,34.83980987]
[1773600764400,10.227,87.986,87.947,34.83980987]
[1773600765402,10.228,87.979,87.947,34.83980987]
[1773600768511,8.38059424,88.019,87.947,34.83980987]
[1773600768714,35.7,88.037,87.947,34.83980987]
[1773600768915,1.97830684,88.033,87.947,34.83980987]
[1773600769304,1.97830684,88.033,87.95,34.86882657]
[1773600769305,10.225,88.0,87.95,34.86882657]
[1773600770216,16.81035592,88.036,87.913,35.68]
[1773600770217,10.224,88.009,87.954,34.88750452]
[1773600771015,10.224,88.009,87.961,34.89062984]
[1773600771614,10.224,88.009,87.965,34.89062984]
[1773600771815,3.09808787,88.01,87.95,34.89322591]
[1773600772016,3.09808787,88.0,87.95,34.89322591]
[1773600772618,10.226,87.992,87.95,34.89322591]
[1773600772818,3.09808787,88.0,87.95,37.99131378]
[1773600773111,20.445,88.025,87.95,37.99131378]
[1773600773112,3.09808787,88.01,87.95,37.99131378]
[1773600773317,10.225,88.0,87.952,34.89327703]
[1773600774520,10.225,88.0,87.953,10.231]
[1773600774718,10.225,88.0,87.954,34.89270351]
[1773600779115,10.226,87.99,87.942,10.232]
[1773600779320,3.09808787,87.98,87.931,34.87717904]
[1773600779714,3.09808787,87.97,87.931,34.87717904]
[1773600780414,10.229,87.967,87.931,34.87717904]
[1773600780618,3.09808787,87.96,87.915,34.88764494]
[1773600781616,13.32808787,87.96,87.915,34.88764494]
[1773600781815,35.7,87.997,87.921,34.8848418]
[1773600782016,3.09808787,87.98,87.921,34.8848418]
[1773600783614,10.229,87.968,87.923,34.91293901]
[1773600787715,8.38223102,87.992,87.923,34.91293901]
[1773600787919,3.09808787,87.99,87.931,34.90648014]
[1773600789119,10.228,87.979,87.934,34.90747205]
[1773600792220,3.09808787,87.96,87.914,34.91081819]
[1773600792921,3.10245677,87.96,87.914,34.91081819]
[1773600793329,10.23,87.958,87.914,34.91081819]
[1773600793920,13.33445677,87.94,87.886,34.94439771]
[1773600794123,13.33445677,87.94,87.887,34.94439771]
[1773600794430,3.10245677,87.94,87.887,34.94439771]
[1773600794628,3.10245677,87.97,87.901,34.94439771]
[1773600795130,3.10245677,87.94,87.887,34.95284829]
[1773600795528,35.7,87.983,87.873,34.95284829]
[1773600795529,3.10245677,87.92,87.873,34.95284829]
[1773600796232,3.10245677,87.9,87.85,34.98971793]
[1773600796625,10.236,87.909,87.85,38.0921747]
[1773600796820,3.10245677,87.92,87.861,35.00401832]
[1773600798532,10.235,87.918,87.861,35.00401832]
[1773600799234,10.235,87.918,87.871,35.00947551]
[1773600801327,10.236,87.911,87.871,35.00947551]
[1773600801530,35.72,87.93,87.827,35.72]
[1773600801531,3.10245677,87.91,87.86,3.10245677]
[1773600801730,3.10245677,87.91,87.856,34.9350462]
[1773600802035,3.10245677,87.9,87.856,34.9350462]
[1773600802231,3.10245677,87.91,87.85,3.10245677]
[1773600802435,3.10245677,87.91,87.851,34.945462]
[1773600803130,10.236,87.91,87.861,34.95005034]
[1773600805535,3.10245677,87.92,87.861,34.95005034]
[1773600806539,10.236,87.909,87.861,34.95005034]
[1773600809645,3.10245677,87.92,87.871,35.03257336]
[1773600810548,10.236,87.912,87.871,35.03257336]
[1773600811049,3.10245677,87.93,87.871,35.03257336]
[1773600812552,3.10245677,87.93,87.881,35.02961627]
[1773600812553,10.235,87.92,87.881,35.02961627]
[1773600813856,10.234,87.928,87.881,35.02961627]
[1773600815052,10.234,87.928,87.883,35.04972054]
[1773600816153,10.233,87.935,87.885,35.04971275]
[1773600816352,10.233,87.935,87.891,35.04971275]
[1773600816552,3.10245677,87.94,87.891,35.04971275]
[1773600816852,10.39247438,88.004,87.865,35.72]
[1773600816853,35.72,87.958,87.901,35.01396752]
[1773600817052,3.10245677,87.94,87.901,35.01396752]
[1773600817654,10.232,87.938,87.901,35.01396752]
[1773600818957,3.10245677,87.94,87.901,35.01396752]
[1773600819154,3.10245677,87.95,87.901,35.01396752]
[1773600820555,10.232,87.94,87.901,35.01396752]
[1773600821657,10.232,87.94,87.865,35.72]
[1773600821658,35.72,87.956,87.911,34.95442397]
[1773600822556,45.95,87.956,87.911,34.95442397]
[1773600823357,10.23,87.956,87.911,34.95442397]
[1773600823762,10.23,87.963,87.921,34.95018029]
[1773600827557,35.72,87.967,87.923,34.97302323]
[1773600827758,33.73851423,87.967,87.931,34.97112957]
[1773600829959,3.10245677,87.99,87.931,45.20412957]
[1773600830266,3.10245677,87.99,87.941,34.9388739]
[1773600830267,35.72,87.99,87.941,34.9388739]
[1773600830766,38.82245677,87.99,87.941,34.9388739]
[1773600831566,10.228,87.981,87.941,34.9388739]
[1773600834866,3.10245677,87.98,87.926,34.93033162]
[1773600835066,3.10245677,87.96,87.926,34.93033162]
[1773600835869,3.10245677,87.97,87.926,34.93033162]
[1773600836571,10.229,87.965,87.926,34.93033162]
[1773600840075,10.23,87.958,87.926,34.93033162]
[1773600840275,3.10245677,87.97,87.926,34.93033162]
[1773600840868,10.23,87.956,87.926,34.93033162]
[1773600841173,3.10245677,87.97,87.926,34.93033162]
[1773600842667,10.229,87.964,87.926,34.93033162]
[1773600843878,10.231,87.953,87.926,34.93033162]
[1773600844376,10.23,87.962,87.926,34.93033162]
[1773600847082,10.23,87.955,87.926,34.93033162]
[1773600847988,35.72,87.969,87.926,34.93033162]
[1773600849288,35.72,87.971,87.926,34.93033162]
[1773600849489,20.451,88.0,87.883,21.12134363]
[1773600849490,3.10245677,88.0,87.941,34.82768317]
[1773600849689,35.72,87.999,87.941,34.82768317]
[1773600850086,3.10245677,88.01,87.951,34.87005365]
[1773600850287,35.72,88.007,87.961,34.87005365]
[1773600850585,3.10245677,88.0,87.941,34.87005365]
[1773600850790,35.72,87.999,87.941,34.87005365]
[1773600851391,10.226,87.993,87.941,34.87005365]
[1773600852892,10.227,87.986,87.941,34.87005365]
[1773600853489,10.228,87.975,87.941,34.87005365]
[1773600853695,3.10245677,87.97,87.928,34.76736531]
[1773600854693,10.23,87.96,87.928,34.76736531]
[1773600857296,10.229,87.967,87.928,34.76736531]
[1773600859700,35.72,87.975,87.928,34.76736531]
[1773600860297,10.23,87.963,87.928,34.76736531]
[1773600861198,35.72,87.983,87.931,34.82688574]
[1773600862507,10.227,87.981,87.932,10.233]
[1773600862702,10.227,87.981,87.933,34.83031857]
[1773600863898,10.227,87.981,87.935,34.83047602]
[1773600864296,10.227,87.988,87.941,45.06247602]
[1773600864496,35.72,87.987,87.942,34.83047602]
[1773600865703,35.72,87.987,87.945,34.83242728]
[1773600868804,35.72,87.987,87.947,34.8385483]
[1773600870512,35.72,87.987,87.949,34.83552356]
[1773600874012,10.227,87.986,87.949,34.83552356]
[1773600875110,10.228,87.98,87.949,34.83552356]
[1773600877613,10.228,87.973,87.935,34.82068783]
[1773600878920,10.228,87.98,87.935,34.82068783]
[1773600879815,10.228,87.974,87.935,34.82068783]
[1773600880222,35.72,87.987,87.935,34.82068783]
[1773600880515,1.97805946,88.043,87.911,34.82158954]
[1773600880516,44.11469788,87.986,87.911,34.82158954]
[1773600880717,20.85115463,88.021,87.888,35.72]
[1773600880718,3.101709,87.98,87.921,34.82158954]
[1773600880919,44.12879507,87.985,87.921,34.82158954]
[1773600880920,3.101709,87.97,87.921,34.82158954]
[1773600881220,35.72,87.969,87.921,34.82158954]
[1773600882521,10.229,87.965,87.921,34.82158954]
[1773600884923,35.72,87.969,87.921,34.82158954]
[1773600886724,10.229,87.967,87.921,34.82158954]
[1773600887927,10.23,87.96,87.921,34.82158954]
[1773600889332,10.229,87.967,87.923,34.79218585]
[1773600889533,35.72,87.969,87.931,34.79218585]
[1773600890230,8.39719693,88.005,87.941,16.93079375]
[1773600890427,35.74,88.004,87.951,16.93079375]
[1773600890627,35.74,88.003,87.951,16.93079375]
[1773600891133,3.101709,87.99,87.951,16.93079375]
[1773600893532,10.228,87.98,87.951,16.93079375]
[1773600896934,3.101709,87.97,87.926,16.95636916]
[1773600897131,35.74,87.969,87.926,16.95636916]
[1773600898637,10.23,87.96,87.926,16.95636916]
[1773600902234,3.101709,87.98,87.926,16.95636916]
[1773600902235,3.101709,87.98,87.928,10.234]
[1773600902436,3.101709,87.99,87.931,16.91734641]
[1773600902634,35.74,87.989,87.931,16.91734641]
[1773600903139,10.229,87.971,87.931,16.91734641]
[1773600906440,8.40184668,87.988,87.941,11.77443236]
[1773600906636,35.74,87.989,87.929,11.77443236]
[1773600906637,3.101709,87.97,87.929,11.77443236]
[1773600906837,10.231,87.951,87.911,11.75613597]
[1773600908940,10.231,87.951,87.889,21.12134363]
[1773600908941,3.101709,87.94,87.89,11.73104229]
[1773600909436,3.101709,87.94,87.89,14.83275129]
[1773600909739,3.101709,87.94,87.891,11.73104229]
[1773600910535,10.233,87.932,87.891,11.73104229]
[1773600910837,35.74,87.948,87.891,11.73104229]
[1773600911334,10.233,87.936,87.891,11.73104229]
[1773600912135,3.101709,87.93,87.891,11.73104229]
[1773600912335,3.101709,87.93,87.87,3.101709]
[1773600912336,3.101709,87.92,87.871,11.72038669]
[1773600913538,10.235,87.916,87.871,11.72038669]
[1773600914743,3.101709,87.92,87.855,11.74717218]
[1773600914940,35.74,87.93,87.861,11.74717218]
[1773600914941,10.236,87.908,87.861,11.74717218]
[1773600915444,10.235,87.918,87.861,11.74717218]
[1773600915648,10.235,87.918,87.871,11.74474716]
[1773600915940,3.101709,87.9,87.839,11.74474716]
[1773600916139,3.101709,87.89,87.841,11.74474716]
[1773600916840,3.10691278,87.92,87.861,11.73638773]
[1773600917348,35.74,87.936,87.881,11.73638773]
[1773600917545,3.10691278,87.93,87.881,11.73638773]
[1773600918041,35.74,87.936,87.851,11.76516898]
[1773600918243,3.10691278,87.9,87.841,11.76516898]
[1773600919342,10.237,87.899,87.844,11.76934337]
[1773600919549,3.10691278,87.86,87.804,21.23192574]
[1773600919837,3.10691278,87.84,87.809,11.7585445]
[1773600920043,10.41088525,87.912,87.809,11.7585445]
[1773600920344,3.10691278,87.85,87.809,11.7585445]
[1773600920743,35.74,87.867,87.81,3.10691278]
[1773600921045,3.10691278,87.89,87.831,11.79954611]
[1773600921241,3.10691278,87.89,87.841,11.79954611]
[1773600921448,3.10691278,87.88,87.841,11.79954611]
[1773600922846,3.10691278,87.88,87.821,11.83237324]
[1773600923042,3.10691278,87.87,87.821,11.83237324]
[1773600923543,35.76,87.89,87.821,11.83237324]
[1773600923844,3.10691278,87.87,87.821,11.83237324]
[1773600924639,3.10691278,87.87,87.799,11.86482824]
[1773600924840,3.10691278,87.85,87.809,11.86482824]
[1773600925847,10.24,87.872,87.809,11.86482824]
[1773600925848,3.10691278,87.86,87.809,11.86482824]
[1773600926039,3.10691278,87.85,87.809,11.86482824]
[1773600926948,3.10691278,87.86,87.809,11.86482824]
[1773600927344,10.24,87.872,87.811,11.784303]
[1773600927543,3.10691278,87.86,87.811,11.784303]
[1773600928641,10.239,87.882,87.814,11.77063597]
[1773600928850,20.467,87.932,87.831,11.77063597]
[1773600928851,35.76,87.908,87.831,11.77063597]
[1773600929044,3.10691278,87.91,87.861,11.77063597]
[1773600930048,3.10691278,87.92,87.861,11.77063597]
[1773600930248,10.235,87.917,87.861,11.77063597]
[1773600930847,10.233,87.93,87.862,11.77645908]
[1773600932552,10.233,87.93,87.866,11.77671458]
[1773600934046,10.233,87.93,87.871,11.79750206]
[1773600936448,10.233,87.93,87.874,10.24]
[1773600936751,10.233,87.93,87.875,11.81580948]
[1773600937150,10.233,87.93,87.86,7.7630387]
[1773600937151,7.7630387,87.93,87.86,11.81573839]